bitfinex-derivatives/quotes_SOLF0:USTF0_20260308
["timestamp","ask_amount","ask_price","bid_price","bid_amount"]
[1772950688899,9.83056923,82.371,82.34,4.02522742]
[1772950689100,3.93069392,82.38,82.34,4.02522742]
[1772950689299,9.83057506,82.379,82.34,4.02522742]
[1772950689501,9.83057506,82.378,82.34,4.02522742]
[1772950689701,9.83057506,82.377,82.34,4.02522742]
[1772950689901,9.83057506,82.376,82.34,4.02522742]
[1772950690102,9.83057506,82.375,82.34,4.02522742]
[1772950690296,9.83057506,82.374,82.34,4.02522742]
[1772950690500,9.83057506,82.373,82.34,4.02522742]
[1772950690702,1.25214362,82.383,82.34,4.02522742]
[1772950690901,9.83033891,82.382,82.34,4.02522742]
[1772950691104,9.83033891,82.381,82.34,4.02522742]
[1772950691403,9.83033891,82.38,82.34,4.02522742]
[1772950691606,9.83033891,82.379,82.34,4.02522742]
[1772950691800,9.83033891,82.378,82.34,4.02522742]
[1772950692002,9.83033891,82.377,82.34,4.02522742]
[1772950692202,9.83033891,82.376,82.34,4.02522742]
[1772950692501,9.83033891,82.375,82.34,4.02522742]
[1772950692701,9.83033891,82.374,82.34,4.02522742]
[1772950692900,9.83033891,82.373,82.34,4.02522742]
[1772950693100,9.83033891,82.372,82.34,4.02522742]
[1772950693302,1.25214362,82.383,82.34,4.02522742]
[1772950693503,11.08161965,82.382,82.34,4.02522742]
[1772950693703,9.8299634,82.381,82.34,4.02522742]
[1772950693902,9.8299634,82.38,82.34,4.02522742]
[1772950694203,9.8299634,82.379,82.34,4.02522742]
[1772950694401,9.8299634,82.378,82.34,4.02522742]
[1772950694700,9.8299634,82.377,82.34,4.02522742]
[1772950694905,9.8299634,82.376,82.34,4.02522742]
[1772950695106,9.8299634,82.375,82.34,4.02522742]
[1772950695306,9.8299634,82.374,82.34,4.02522742]
[1772950695505,1.25165625,82.382,82.34,4.02522742]
[1772950695506,9.8299634,82.373,82.34,4.02522742]
[1772950695807,9.8299634,82.372,82.34,4.02522742]
[1772950696007,1.25165625,82.382,82.34,4.02522742]
[1772950696207,1.253197,82.38,82.34,4.02522742]
[1772950696406,11.09179303,82.379,82.34,4.02522742]
[1772950696707,9.83859603,82.378,82.34,4.02522742]
[1772950696908,9.83859603,82.377,82.34,4.02522742]
[1772950697107,9.83859603,82.376,82.34,4.02522742]
[1772950697301,1.253197,82.379,82.34,4.02522742]
[1772950697505,9.83795003,82.378,82.34,4.02522742]
[1772950697706,9.83795003,82.377,82.34,4.02522742]
[1772950697905,9.83795003,82.376,82.34,4.02522742]
[1772950698108,1.253197,82.379,82.34,4.02522742]
[1772950698406,9.83713436,82.378,82.34,4.02522742]
[1772950698606,9.83713436,82.377,82.34,4.02522742]
[1772950698806,9.83713436,82.376,82.34,4.02522742]
[1772950699009,1.253197,82.379,82.34,4.02522742]
[1772950699310,9.83649628,82.378,82.34,4.02522742]
[1772950699508,9.83649628,82.377,82.34,4.02522742]
[1772950699708,9.83649628,82.376,82.34,4.02522742]
[1772950699909,1.253197,82.379,82.34,4.02522742]
[1772950700205,9.83653002,82.378,82.34,4.02522742]
[1772950700409,9.83653002,82.377,82.34,4.02522742]
[1772950700610,1.253197,82.379,82.34,4.02522742]
[1772950700811,9.8360025,82.378,82.34,4.02522742]
[1772950701011,9.8360025,82.377,82.34,4.02522742]
[1772950701212,1.253197,82.379,82.34,4.02522742]
[1772950701412,9.83562065,82.378,82.34,4.02522742]
[1772950701611,1.253197,82.379,82.34,4.02522742]
[1772950701812,9.83562065,82.378,82.34,4.02522742]
[1772950702013,1.253197,82.379,82.34,4.02522742]
[1772950702214,9.83562063,82.378,82.34,4.02522742]
[1772950702414,1.253197,82.379,82.34,4.02522742]
[1772950702608,9.83504753,82.378,82.34,4.02522742]
[1772950702809,1.253197,82.379,82.34,4.02522742]
[1772950703115,9.83504753,82.378,82.34,4.02522742]
[1772950703315,1.253197,82.379,82.34,4.02522742]
[1772950703609,9.8345637,82.378,82.34,4.02522742]
[1772950703810,9.8345637,82.377,82.34,4.02522742]
[1772950704017,1.253197,82.379,82.34,4.02522742]
[1772950704209,9.83440055,82.378,82.34,4.02522742]
[1772950704405,1.253197,82.379,82.34,4.02522742]
[1772950704606,9.83417032,82.378,82.34,4.02522742]
[1772950704810,1.253197,82.379,82.34,4.02522742]
[1772950705015,9.83417182,82.378,82.34,4.02522742]
[1772950705313,1.253197,82.379,82.34,4.02522742]
[1772950705512,9.83388932,82.378,82.34,4.02522742]
[1772950705708,1.253197,82.379,82.34,4.02522742]
[1772950705912,9.83388932,82.378,82.34,4.02522742]
[1772950706112,1.253197,82.379,82.34,4.02522742]
[1772950706409,9.8336736,82.378,82.34,4.02522742]
[1772950706614,1.253197,82.379,82.34,4.02522742]
[1772950709816,1.27185634,82.397,82.351,3.7047882]
[1772950710013,9.83594255,82.396,82.351,3.7047882]
[1772950710209,9.83594255,82.395,82.351,3.7047882]
[1772950710414,1.27185634,82.397,82.351,3.7047882]
[1772950710614,11.10308758,82.396,82.351,3.7047882]
[1772950710816,9.83123124,82.395,82.359,3.7047882]
[1772950711016,1.27185634,82.396,82.359,3.7047882]
[1772950722024,477.67651267,82.398,82.361,4.02023587]
[1772950722624,1.25790884,82.416,82.368,4.02023587]
[1772950722822,1.25790884,82.416,82.371,4.02023587]
[1772950722823,9.81772318,82.415,82.371,4.02023587]
[1772950723026,9.81772318,82.414,82.371,4.02023587]
[1772950723226,1.25790884,82.416,82.373,4.02023587]
[1772950723421,296.51020659,82.42,82.373,4.02023587]
[1772950724223,9.81350058,82.419,82.373,4.02023587]
[1772950724431,1.25900072,82.419,82.373,4.02023587]
[1772950724930,1.25900072,82.419,82.377,4.02023587]
[1772950725927,1.24333374,82.399,82.341,4.02023587]
[1772950726631,1.24333374,82.399,82.356,4.02023587]
[1772950726930,1.24333374,82.389,82.356,4.02023587]
[1772950728632,1.2416936,82.379,82.338,4.02023587]
[1772950729933,5.18154106,82.39,82.343,4.02023587]
[1772950730332,5.18154106,82.4,82.343,4.02023587]
[1772950730635,9.78581551,82.399,82.343,4.02023587]
[1772950730838,9.78581551,82.398,82.343,4.02023587]
[1772950731134,9.78581551,82.397,82.343,4.02023587]
[1772950731337,11.03022099,82.396,82.343,4.02023587]
[1772950731633,9.78581551,82.395,82.343,4.02023587]
[1772950731834,1.24440548,82.396,82.354,4.02023587]
[1772950732135,9.7882192,82.395,82.354,4.02023587]
[1772950732332,1.24440548,82.396,82.354,4.02023587]
[1772950732333,9.7882192,82.394,82.354,4.02023587]
[1772950732533,1.24440548,82.396,82.354,4.02023587]
[1772950732736,9.78871703,82.395,82.354,4.02023587]
[1772950733031,9.78871703,82.394,82.354,4.02023587]
[1772950733233,1.24440548,82.396,82.354,4.02023587]
[1772950733431,9.79242536,82.395,82.354,4.02023587]
[1772950733634,9.79242536,82.394,82.354,4.02023587]
[1772950733834,1.24440548,82.396,82.354,4.02023587]
[1772950734134,9.79249122,82.395,82.354,4.02023587]
[1772950734335,11.04614627,82.394,82.354,4.02023587]
[1772950734533,1.25365505,82.394,82.354,4.02023587]
[1772950736134,3.9288593,82.39,82.354,4.02023587]
[1772950736335,1.25365505,82.394,82.356,4.02023587]
[1772950737536,1.25365505,82.394,82.36,4.02023587]
[1772950739446,1.26491431,82.404,82.362,4.02023587]
[1772950739646,9.79476956,82.403,82.362,4.02023587]
[1772950739838,9.79476956,82.402,82.362,4.02023587]
[1772950740043,1.26491431,82.404,82.362,4.02023587]
[1772950740346,9.7952624,82.403,82.364,4.02023587]
[1772950740541,9.7952624,82.402,82.364,4.02023587]
[1772950740743,298.02689933,82.413,82.371,4.02023587]
[1772950741844,1.26491431,82.415,82.377,3.75629148]
[1772950745351,3.9288593,82.42,82.377,3.75629148]
[1772950745949,5.16219775,82.42,82.377,3.75629148]
[1772950746151,1.23333845,82.419,82.377,3.75629148]
[1772950746349,1.23333845,82.419,82.379,3.81093948]
[1772950754752,1.22975392,82.417,82.369,3.81093948]
[1772950754953,1.22975392,82.421,82.37,3.9288593]
[1772950755155,1.22503466,82.419,82.371,3.81093948]
[1772950755955,1.22503466,82.417,82.371,3.81093948]
[1772950756855,1.22503466,82.415,82.371,3.81093948]
[1772950761857,1.22292615,82.409,82.371,3.81093948]
[1772950767559,1.26623681,82.399,82.36,3.81093948]
[1772950770961,1.27608911,82.389,82.36,3.81093948]
[1772950771554,1.27608911,82.389,82.351,3.81093948]
[1772950772260,5.20494841,82.38,82.351,3.81093948]
[1772950777069,1.27608911,82.38,82.351,3.81093948]
[1772950782671,1.3108482,82.379,82.351,3.81093948]
[1772950792579,1.3108482,82.379,82.342,3.73139116]
[1772950793878,1.30066531,82.375,82.342,3.73139116]
[1772950795688,1.29733766,82.349,82.312,3.73139116]
[1772950795883,1.29733766,82.339,82.291,3.73139116]
[1772950796483,1.29733766,82.319,82.271,3.73139116]
[1772950796679,1.29733766,82.329,82.28,3.93097579]
[1772950796875,1.29733766,82.329,82.281,3.73139116]
[1772950798778,1.29733766,82.329,82.251,206.2750259]
[1772950798779,3.93097579,82.35,82.301,3.73139116]
[1772950798984,1.58324659,82.359,82.301,3.73139116]
[1772950800682,10.928,82.355,82.301,3.73139116]
[1772950800883,3.93097579,82.34,82.301,3.73139116]
[1772950801285,3.93097579,82.36,82.301,3.73139116]
[1772950801493,1.52002087,82.359,82.301,3.73139116]
[1772950802494,1.51756577,82.369,82.311,3.89723144]
[1772950802703,1.51756577,82.369,82.321,3.89723144]
[1772950802996,1.52463392,82.379,82.321,3.89723144]
[1772950803797,10.926,82.373,82.321,3.89723144]
[1772950805497,1.49300493,82.369,82.321,3.89723144]
[1772950806498,1.49300493,82.359,82.321,3.89723144]
[1772950807602,10.927,82.366,82.321,3.89723144]
[1772950808198,12.45318307,82.366,82.321,3.89723144]
[1772950809416,1.52829998,82.365,82.321,3.89723144]
[1772950810015,1.52829998,82.359,82.321,3.89723144]
[1772950810216,3.93097579,82.35,82.321,3.89723144]
[1772950810416,1.52829998,82.349,82.301,3.89723144]
[1772950811210,3.93097579,82.36,82.301,3.89723144]
[1772950811415,10.927,82.363,82.311,3.89723144]
[1772950812710,1.51449836,82.362,82.311,3.89723144]
[1772950813612,10.928,82.355,82.311,3.89723144]
[1772950815616,12.44268272,82.355,82.311,3.89723144]
[1772950815917,1.51468272,82.349,82.311,3.89723144]
[1772950830421,1.36033654,82.359,82.313,3.89723144]
[1772950831819,1.36033654,82.359,82.315,3.89723144]
[1772950832516,1.36033654,82.359,82.318,3.87956654]
[1772950839524,3.93097579,82.35,82.318,3.87956654]
[1772950839826,1.38015738,82.349,82.318,3.87956654]
[1772950840131,1.38015738,82.349,82.291,3.87956654]
[1772950840926,1.38015738,82.349,82.301,3.87956654]
[1772950841429,3.93097579,82.35,82.301,3.87956654]
[1772950841625,3.93097579,82.36,82.311,3.87956654]
[1772950841830,3.93097579,82.38,82.321,3.87956654]
[1772950842019,9.82947162,82.379,82.321,3.87956654]
[1772950842225,9.82947162,82.378,82.321,3.87956654]
[1772950842431,9.82947162,82.377,82.331,3.87956654]
[1772950842630,9.82947162,82.376,82.331,3.87956654]
[1772950842833,9.82947162,82.375,82.331,3.87956654]
[1772950843134,9.82947162,82.374,82.341,3.87956654]
[1772950843333,9.82947162,82.373,82.341,3.87956654]
[1772950843525,11.27619965,82.392,82.341,3.87956654]
[1772950843725,9.83396758,82.391,82.341,3.87956654]
[1772950843932,9.83396758,82.39,82.341,3.87956654]
[1772950844132,9.83396758,82.389,82.341,3.87956654]
[1772950844433,9.83396758,82.388,82.341,3.87956654]
[1772950844634,9.83396758,82.387,82.341,3.87956654]
[1772950844934,9.83396758,82.386,82.341,3.87956654]
[1772950845134,9.83396758,82.385,82.341,3.87956654]
[1772950845434,9.83396758,82.384,82.341,3.87956654]
[1772950845628,9.83396758,82.383,82.341,3.87956654]
[1772950845824,9.83396758,82.382,82.341,3.87956654]
[1772950846028,9.83396758,82.381,82.341,3.87956654]
[1772950846234,9.83396758,82.38,82.341,3.87956654]
[1772950846431,9.83396758,82.379,82.341,3.87956654]
[1772950846630,9.83396758,82.378,82.341,3.87956654]
[1772950846928,9.83396758,82.377,82.341,3.87956654]
[1772950847133,9.83396758,82.376,82.341,3.87956654]
[1772950847329,3.93097579,82.39,82.341,3.87956654]
[1772950847330,9.83396758,82.375,82.341,3.87956654]
[1772950847537,3.93097579,82.39,82.341,3.87956654]
[1772950847734,9.81743328,82.389,82.341,3.87956654]
[1772950848035,3.93097579,82.39,82.341,3.87956654]
[1772950848036,9.81743328,82.388,82.341,3.87956654]
[1772950848235,9.81743328,82.387,82.341,3.87956654]
[1772950848434,9.81743328,82.386,82.341,3.87956654]
[1772950848636,9.81743328,82.385,82.341,3.87956654]
[1772950848832,9.81743328,82.384,82.342,3.87956654]
[1772950849031,9.81743328,82.383,82.342,3.87956654]
[1772950849232,9.81743328,82.382,82.342,3.87956654]
[1772950849439,9.81743328,82.381,82.342,3.87956654]
[1772950849737,9.81743328,82.38,82.342,3.87956654]
[1772950849938,3.93097579,82.39,82.342,3.87956654]
[1772950850138,1.21411543,82.403,82.347,3.87956654]
[1772950850436,3.93097579,82.4,82.347,3.87956654]
[1772950850637,9.81105754,82.399,82.347,3.87956654]
[1772950850840,9.81105754,82.398,82.347,3.87956654]
[1772950851034,9.81105754,82.397,82.347,3.87956654]
[1772950851236,3.93097579,82.4,82.347,3.87956654]
[1772950851436,9.80780609,82.399,82.347,3.87956654]
[1772950851635,9.80780609,82.398,82.347,3.87956654]
[1772950851837,3.93097579,82.4,82.352,3.87956654]
[1772950852032,9.80794155,82.399,82.352,3.87956654]
[1772950852238,3.93097579,82.4,82.352,3.87956654]
[1772950852737,3.93097579,82.4,82.353,10.929]
[1772950852934,3.93097579,82.4,82.354,3.87956654]
[1772950855040,5.14514275,82.4,82.357,10.928]
[1772950855240,5.14514275,82.4,82.358,3.87956654]
[1772950856541,5.14245366,82.4,82.358,3.87956654]
[1772950859947,5.14245366,82.4,82.361,3.87956654]
[1772950860244,1.22214902,82.421,82.371,3.87956654]
[1772950860446,473.90855492,82.429,82.371,3.87956654]
[1772950860746,473.90855492,82.429,82.375,3.87956654]
[1772950860948,475.13070394,82.429,82.375,3.87956654]
[1772950861342,1.2204319,82.428,82.375,3.87956654]
[1772950862337,473.90855492,82.429,82.319,3.71726813]
[1772950862338,1.21586787,82.409,82.319,3.71726813]
[1772950862544,1.21586787,82.409,82.351,3.71726813]
[1772950863346,3.9282867,82.4,82.351,3.71726813]
[1772950863742,3.9282867,82.4,82.353,10.929]
[1772950863948,1.21586787,82.409,82.361,3.71726813]
[1772950864147,5.15432557,82.42,82.361,3.71726813]
[1772950864347,1.22603887,82.419,82.361,3.71726813]
[1772950864645,1.22603887,82.417,82.367,3.71726813]
[1772950865351,1.22603887,82.417,82.369,3.71726813]
[1772950866446,1.23445654,82.409,82.373,3.71726813]
[1772950867653,3.9282867,82.41,82.373,3.71726813]
[1772950868952,3.9282867,82.42,82.373,3.71726813]
[1772950870759,3.9282867,82.42,82.375,3.71726813]
[1772950871752,3.9282867,82.42,82.379,3.71726813]
[1772950874758,3.9282867,82.42,82.383,10.925]
[1772950874966,3.9282867,82.42,82.384,3.71726813]
[1772950876962,3.9282867,82.42,82.386,3.71726813]
[1772950877463,3.9282867,82.42,82.388,3.71726813]
[1772950878760,3.9282867,82.42,82.39,10.924]
[1772950878961,3.9282867,82.42,82.39,14.64126813]
[1772950879359,3.9282867,82.42,82.39,3.71726813]
[1772950879561,1.16760599,82.409,82.371,3.71726813]
[1772950880966,1.16760599,82.409,82.379,10.925]
[1772950881370,1.16760599,82.409,82.379,14.64226813]
[1772950881866,1.16760599,82.409,82.38,3.71726813]
[1772950884471,1.22505017,82.419,82.38,3.71726813]
[1772950887667,1.22505017,82.419,82.384,3.71726813]
[1772950887863,1.2265585,82.428,82.384,3.71726813]
[1772950889070,1.2265585,82.428,82.388,3.71726813]
[1772950890765,1.2265585,82.428,82.39,3.71726813]
[1772950892272,1.2265585,82.428,82.392,3.71726813]
[1772950900272,1.15272053,82.448,82.397,3.76101193]
[1772950900577,1.15272053,82.448,82.401,3.76101193]
[1772950900578,9.81939477,82.447,82.401,3.76101193]
[1772950900774,1.15272053,82.439,82.408,10.921]
[1772950901678,1.15272053,82.439,82.408,14.68201193]
[1772950901878,1.15272053,82.439,82.409,3.76101193]
[1772950905177,1.16890774,82.457,82.415,3.76101193]
[1772950905377,3.9282867,82.45,82.415,3.76101193]
[1772950906876,3.9282867,82.45,82.417,3.76101193]
[1772950908680,3.9282867,82.44,82.417,3.76101193]
[1772950910688,1.17337477,82.449,82.417,3.76101193]
[1772950912992,1.18630985,82.458,82.417,3.76101193]
[1772950914788,3.9282867,82.45,82.419,3.76101193]
[1772950916595,3.92323618,82.45,82.419,3.76101193]
[1772950917095,1.18630985,82.458,82.421,3.76101193]
[1772950917396,3.92323618,82.46,82.421,3.76101193]
[1772950918894,1.18688258,82.468,82.421,3.76101193]
[1772950919993,1.18688258,82.468,82.426,3.76101193]
[1772950921898,1.18688258,82.468,82.429,3.76101193]
[1772950924590,1.18989329,82.449,82.407,4.00466438]
[1772950925899,1.18989329,82.449,82.408,10.921]
[1772950926202,1.18989329,82.449,82.408,14.92566438]
[1772950926401,1.18989329,82.449,82.409,4.00466438]
[1772950926597,3.92323618,82.45,82.412,4.00466438]
[1772950926802,1.18618564,82.459,82.412,4.00466438]
[1772950927396,1.18618564,82.459,82.413,10.921]
[1772950927597,1.18618564,82.459,82.414,4.00466438]
[1772950928805,1.18618564,82.459,82.417,4.00466438]
[1772950929602,1.18618564,82.459,82.42,4.00466438]
[1772950929998,10.911,82.485,82.42,4.00466438]
[1772950929999,1.03990067,82.469,82.42,4.00466438]
[1772950931407,1.03990067,82.469,82.431,4.00466438]
[1772950932107,3.92323618,82.46,82.431,4.00466438]
[1772950932302,1.03990067,82.469,82.431,4.00466438]
[1772950932507,1.04222157,82.479,82.431,4.00466438]
[1772950933803,1.04222157,82.479,82.433,10.918]
[1772950934006,1.04222157,82.479,82.434,4.00466438]
[1772950934208,1.04222157,82.479,82.366,198.854]
[1772950934209,3.92323618,82.46,82.411,4.00466438]
[1772950934512,1.03757187,82.459,82.411,4.00466438]
[1772950934806,1.03757187,82.459,82.423,10.919]
[1772950935210,1.03757187,82.459,82.423,14.92366438]
[1772950935407,1.03757187,82.459,82.424,4.00466438]
[1772950936308,1.03757187,82.459,82.413,10.921]
[1772950936309,3.92323618,82.45,82.414,4.00466438]
[1772950936509,1.03136592,82.449,82.414,4.00466438]
[1772950939610,1.03813404,82.439,82.403,4.00466438]
[1772950940516,3.92323618,82.43,82.403,4.00466438]
[1772950941915,3.92323618,82.44,82.403,4.00466438]
[1772950942118,3.92323618,82.45,82.403,4.00466438]
[1772950942318,9.8525335,82.449,82.403,4.00466438]
[1772950942617,9.8525335,82.448,82.403,4.00466438]
[1772950942818,9.8525335,82.447,82.403,4.00466438]
[1772950943017,9.8525335,82.446,82.403,4.00466438]
[1772950943214,9.85491405,82.445,82.403,4.00466438]
[1772950943416,3.92323618,82.45,82.403,4.00466438]
[1772950943614,9.85491405,82.449,82.403,4.00466438]
[1772950943912,9.85491405,82.448,82.403,4.00466438]
[1772950944117,9.85491405,82.447,82.403,4.00466438]
[1772950944322,9.85491405,82.446,82.403,4.00466438]
[1772950944622,3.92323618,82.45,82.403,4.00466438]
[1772950944813,9.85650175,82.449,82.403,4.00466438]
[1772950945013,9.85650175,82.448,82.403,4.00466438]
[1772950945323,9.85650175,82.447,82.403,4.00466438]
[1772950945526,9.85650175,82.446,82.403,4.00466438]
[1772950945824,1.01949303,82.449,82.403,4.00466438]
[1772950946019,9.85806022,82.448,82.403,4.00466438]
[1772950946219,9.85806022,82.447,82.403,4.00466438]
[1772950946420,9.85806022,82.446,82.403,4.00466438]
[1772950946613,1.01949303,82.449,82.403,4.00466438]
[1772950946818,9.85506717,82.448,82.403,4.00466438]
[1772950947114,9.85506717,82.447,82.403,4.00466438]
[1772950947314,1.01949303,82.449,82.403,4.00466438]
[1772950947518,10.85666834,82.448,82.403,4.00466438]
[1772950947719,9.85500422,82.447,82.403,4.00466438]
[1772950948018,1.00166412,82.448,82.403,4.00466438]
[1772950948317,1.00166412,82.446,82.403,4.00466438]
[1772950948517,1.00166412,82.439,82.403,4.00466438]
[1772950952529,3.92323618,82.44,82.403,4.00466438]
[1772950952728,4.93278127,82.45,82.403,4.00466438]
[1772950952926,9.85316478,82.449,82.403,4.00466438]
[1772950953127,9.85316478,82.448,82.403,4.00466438]
[1772950953328,4.93278127,82.45,82.403,4.00466438]
[1772950953530,9.85262233,82.449,82.403,4.00466438]
[1772950953730,9.85262233,82.448,82.403,4.00466438]
[1772950953931,4.93278127,82.45,82.403,4.00466438]
[1772950954131,9.85263928,82.449,82.403,4.00466438]
[1772950954328,9.85263928,82.448,82.403,4.00466438]
[1772950954528,3.92323618,82.44,82.403,4.00466438]
[1772950955723,4.98592997,82.46,82.409,4.06235907]
[1772950955933,9.85258361,82.459,82.409,4.06235907]
[1772950956129,3.92323618,82.45,82.409,4.06235907]
[1772950956835,3.92323618,82.45,82.411,4.06235907]
[1772950960134,4.98592997,82.46,82.415,4.06235907]
[1772950960335,9.85285682,82.459,82.415,4.06235907]
[1772950960529,3.92323618,82.47,82.421,4.06235907]
[1772950960727,3.92323618,82.47,82.426,4.06235907]
[1772950961033,1.06179161,82.472,82.426,4.06235907]
[1772950961825,1.06179161,82.472,82.42,3.92323618]
[1772950961826,1.06179161,82.472,82.43,4.06235907]
[1772950965237,1.09887334,82.483,82.432,4.06235907]
[1772950965638,3.92323618,82.48,82.432,4.06235907]
[1772950966839,3.92323618,82.48,82.436,4.06235907]
[1772950967343,1.09887334,82.483,82.447,4.06235907]
[1772950970042,296.60293568,82.49,82.447,4.06235907]
[1772950970644,300.52617186,82.49,82.447,4.06235907]
[1772950972734,296.60293568,82.49,82.447,4.06235907]
[1772950973539,1.09938785,82.493,82.452,4.06235907]
[1772950975945,3.92323618,82.49,82.452,4.06235907]
[1772950978553,3.91929368,82.49,82.452,4.06235907]
[1772950979952,1.09938785,82.493,82.452,4.06235907]
[1772950980148,1.09938785,82.493,82.456,4.06235907]
[1772950983545,3.91929368,82.49,82.456,4.06235907]
[1772950983743,4.98097666,82.49,82.456,4.06235907]
[1772950984853,1.06168298,82.489,82.456,4.06235907]
[1772950985246,1.06168298,82.489,82.445,10.916]
[1772950985447,1.06129468,82.479,82.447,3.98476933]
[1772950986353,1.06129468,82.489,82.447,3.98476933]
[1772950987856,1.06129468,82.489,82.45,3.98476933]
[1772950989660,3.91929368,82.48,82.45,3.98476933]
[1772950990861,1.06129468,82.489,82.452,3.98476933]
[1772950996860,4.89393741,82.48,82.452,3.98476933]
[1772950997055,0.97464373,82.479,82.452,3.98476933]
[1772950998164,0.97428508,82.469,82.432,3.98476933]
[1772951006868,0.97428508,82.469,82.434,3.98476933]
[1772951009071,0.95204338,82.459,82.424,663.52181475]
[1772951009268,0.95204338,82.459,82.425,3.98476933]
[1772951014678,0.92061302,82.468,82.429,3.74408801]
[1772951032799,0.93728306,82.459,82.42,3.74408801]
[1772951033097,10.913,82.471,82.41,320.39885511]
[1772951033098,0.93728306,82.449,82.41,320.39885511]
[1772951033899,0.93728306,82.449,82.408,10.921]
[1772951034896,0.93728306,82.449,82.409,3.74408801]
[1772951045007,3.67443848,82.461,82.411,3.93980889]
[1772951045212,3.92425791,82.47,82.411,3.93980889]
[1772951045404,9.78742114,82.469,82.411,3.93980889]
[1772951045605,9.78742114,82.468,82.411,3.93980889]
[1772951045810,9.78742114,82.467,82.411,3.93980889]
[1772951046011,3.92425791,82.47,82.411,3.93980889]
[1772951046012,7.59869639,82.47,82.411,3.93980889]
[1772951046304,9.78772775,82.469,82.411,3.93980889]
[1772951046510,7.59869639,82.47,82.411,3.93980889]
[1772951046710,13.46281338,82.469,82.411,3.93980889]
[1772951046906,3.67443848,82.469,82.414,3.93980889]
[1772951047810,3.67443848,82.469,82.418,3.93980889]
[1772951050419,3.67443848,82.469,82.421,3.93980889]
[1772951052208,9.79125837,82.468,82.421,3.93980889]
[1772951052508,3.67443848,82.469,82.421,3.93980889]
[1772951052708,9.79160964,82.468,82.421,3.93980889]
[1772951052908,3.67443848,82.469,82.421,3.93980889]
[1772951053111,9.79160964,82.468,82.421,3.93980889]
[1772951053309,3.67443848,82.469,82.421,3.93980889]
[1772951053516,13.46649518,82.468,82.421,3.93980889]
[1772951053819,3.67443848,82.467,82.421,3.93980889]
[1772951055216,3.92425791,82.47,82.424,3.93980889]
[1772951055418,3.67443848,82.476,82.424,3.93980889]
[1772951055622,9.79344589,82.475,82.424,3.93980889]
[1772951055814,9.79344589,82.474,82.424,3.93980889]
[1772951056014,9.79344589,82.473,82.424,3.93980889]
[1772951056210,3.67443848,82.474,82.424,3.93980889]
[1772951056415,13.4707542,82.473,82.424,3.93980889]
[1772951056616,3.67443848,82.473,82.424,3.93980889]
[1772951056815,3.67443848,82.473,82.428,3.93980889]
[1772951057919,3.67443848,82.471,82.428,3.93980889]
[1772951058625,3.92425791,82.47,82.428,3.93980889]
[1772951058819,3.67443848,82.469,82.428,3.93980889]
[1772951066928,3.67443848,82.459,82.419,3.93980889]
[1772951076734,10.913,82.475,82.413,330.57083559]
[1772951076735,3.93984518,82.457,82.413,330.57083559]
[1772951077034,3.93984518,82.457,82.414,4.01335239]
[1772951082739,3.93984518,82.457,82.416,4.01335239]
[1772951083444,3.93984518,82.469,82.418,4.01335239]
[1772951083643,13.74105225,82.468,82.418,4.01335239]
[1772951083937,13.74105225,82.467,82.418,4.01335239]
[1772951084141,13.74105225,82.466,82.418,4.01335239]
[1772951084439,9.80120707,82.465,82.418,4.01335239]
[1772951084632,9.80120707,82.464,82.418,4.01335239]
[1772951084836,9.80120707,82.463,82.421,4.01335239]
[1772951085037,9.80120707,82.462,82.421,4.01335239]
[1772951085231,9.80120707,82.461,82.421,4.01335239]
[1772951085436,3.93984518,82.466,82.421,4.01335239]
[1772951085637,3.93984518,82.464,82.421,4.01335239]
[1772951085843,9.80230557,82.463,82.421,4.01335239]
[1772951086042,9.80230557,82.462,82.421,4.01335239]
[1772951086244,9.80230557,82.461,82.421,4.01335239]
[1772951086441,3.93984518,82.464,82.421,4.01335239]
[1772951086643,9.78411341,82.463,82.421,4.01335239]
[1772951086843,9.78411341,82.462,82.421,4.01335239]
[1772951087037,9.78411341,82.461,82.421,4.01335239]
[1772951087244,3.93984518,82.464,82.421,4.01335239]
[1772951087439,13.72501697,82.463,82.421,4.01335239]
[1772951087641,9.78517179,82.462,82.421,4.01335239]
[1772951087842,9.78517179,82.461,82.421,4.01335239]
[1772951088143,9.78517179,82.46,82.421,4.01335239]
[1772951088340,3.93984518,82.462,82.421,4.01335239]
[1772951088534,9.78635693,82.461,82.421,4.01335239]
[1772951088740,9.78635693,82.46,82.421,4.01335239]
[1772951089039,3.93984518,82.462,82.421,4.01335239]
[1772951089239,9.78635693,82.461,82.421,4.01335239]
[1772951089440,9.78635693,82.46,82.421,4.01335239]
[1772951089640,3.93984518,82.462,82.421,4.01335239]
[1772951089840,13.72751553,82.461,82.421,4.01335239]
[1772951090037,9.78767035,82.46,82.421,4.01335239]
[1772951090241,3.93984518,82.461,82.421,4.01335239]
[1772951090541,9.78767509,82.46,82.421,4.01335239]
[1772951090841,3.93984518,82.461,82.421,4.01335239]
[1772951091041,9.78274115,82.46,82.421,4.01335239]
[1772951091246,3.93984518,82.461,82.421,4.01335239]
[1772951091444,9.78274849,82.46,82.421,4.01335239]
[1772951091643,3.93984518,82.461,82.421,4.01335239]
[1772951091847,9.78274785,82.46,82.421,4.01335239]
[1772951092046,3.93984518,82.461,82.421,4.01335239]